{"text_format":"3","workbook":"xlsx","n_sheets":1,"sheets":["Měsíční rodinný rozpočet"],"read":"whole","date_system":"1900"}

{"sheet":"Měsíční rodinný rozpočet","index":0,"n_rows":67,"n_cols":10,"rows_kept":67}
[null,"Měsíční rodinný rozpočet"]
[null,"Tabulka souhrnu","Celkem\npředpokládané náklady","Celkem\nskutečné náklady","Celkem\nRozdíl",null,"Zdroj předpokládaných měsíčních příjmů","Částka"]
[null,null,{"$f":"Bydleni[[#Totals],[Předpokládané\nnáklady]]+Doprava[[#Totals],[Předpokládané\nnáklady]]+Pojisteni[[#Totals],[Předpokládané\nnáklady]]+Jidlo[[#Totals],[Předpokládané\nnáklady]]+Deti[[#Totals],[Předpokládané\nnáklady]]+Pravni[[#Totals],[Předpokládané\nnáklady]]+Sporeni[[#Totals],[Předpokládané\nnáklady]]+Pujcky[[#Totals],[Předpokládané\nnáklady]]+Zabava[[#Totals],[Předpokládané\nnáklady]]+Dane[[#Totals],[Předpokládané \nnáklady]]+OsobniPece[[#Totals],[Předpokládané\nnáklady]]+DomaciZvirata[[#Totals],[Předpokládané\nnáklady]]+Darky[[#Totals],[Předpokládané\nnáklady]]","v":{"v":1203,"d":"1,203 Kč"}},{"$f":"Bydleni[[#Totals],[Skutečné\nnáklady]]+Doprava[[#Totals],[Skutečné\nnáklady]]+Pojisteni[[#Totals],[Skutečné\nnáklady]]+Jidlo[[#Totals],[Skutečné\nnáklady]]+Deti[[#Totals],[Skutečné\nnáklady]]+Pravni[[#Totals],[Skutečné\nnáklady]]+Sporeni[[#Totals],[Skutečné\nnáklady]]+Pujcky[[#Totals],[Skutečné\nnáklady]]+Zabava[[#Totals],[Skutečné\nnáklady]]+Dane[[#Totals],[Skutečné \nnáklady]]+OsobniPece[[#Totals],[Skutečné\nnáklady]]+DomaciZvirata[[#Totals],[Skutečné\nnáklady]]+Darky[[#Totals],[Skutečné\nnáklady]]","v":{"v":1317,"d":"1,317 Kč"}},{"$f":"Bydleni[[#Totals],[Rozdíl]]+Doprava[[#Totals],[Rozdíl]]+Pojisteni[[#Totals],[Rozdíl]]+Jidlo[[#Totals],[Rozdíl]]+Deti[[#Totals],[Rozdíl]]+Pravni[[#Totals],[Rozdíl]]+Sporeni[[#Totals],[Rozdíl]]+Pujcky[[#Totals],[Rozdíl]]+Zabava[[#Totals],[Rozdíl]]+Dane[[#Totals],[Rozdíl]]+OsobniPece[[#Totals],[Rozdíl]]+DomaciZvirata[[#Totals],[Rozdíl]]+Darky[[#Totals],[Rozdíl]]","v":{"v":-114,"d":"-114 Kč"}},null,"Příjem 1",{"v":4000,"d":"4,000 Kč"}]
[{"$nulls":6},"Příjem 2",{"v":1200,"d":"1,200 Kč"}]
[null,"Bydlení","Předpokládané\nnáklady","Skutečné\nnáklady","Rozdíl",null,"Jiné příjmy",{"v":300,"d":"300 Kč"}]
[null,"Hypotéka nebo nájemné",{"v":1000,"d":"1,000 Kč"},{"v":1000,"d":"1,000 Kč"},{"$f":"Bydleni[Předpokládané\nnáklady]-Bydleni[Skutečné\nnáklady]","v":{"v":0,"d":"0 Kč"}},null,"Celkové měsíční příjmy",{"$f":"SUM(H3:H5)","v":{"v":5500,"d":"5,500 Kč"}}]
[null,"Druhá hypotéka nebo nájemné",{"v":0,"d":"0 Kč"},{"v":0,"d":"0 Kč"},{"$f":"Bydleni[Předpokládané\nnáklady]-Bydleni[Skutečné\nnáklady]","v":{"v":0,"d":"0 Kč"}}]
[null,"Telefon",{"v":62,"d":"62 Kč"},{"v":100,"d":"100 Kč"},{"$f":"Bydleni[Předpokládané\nnáklady]-Bydleni[Skutečné\nnáklady]","v":{"v":-38,"d":"-38 Kč"}},null,"Zdroj skutečných měsíčních příjmů","Částka"]
[null,"Elektřina",{"v":44,"d":"44 Kč"},{"v":125,"d":"125 Kč"},{"$f":"Bydleni[Předpokládané\nnáklady]-Bydleni[Skutečné\nnáklady]","v":{"v":-81,"d":"-81 Kč"}},null,"Příjem 1",{"v":4000,"d":"4,000 Kč"}]
[null,"Plyn",{"v":22,"d":"22 Kč"},{"v":35,"d":"35 Kč"},{"$f":"Bydleni[Předpokládané\nnáklady]-Bydleni[Skutečné\nnáklady]","v":{"v":-13,"d":"-13 Kč"}},null,"Příjem 2",{"v":1200,"d":"1,200 Kč"}]
[null,"Vodné a stočné",{"v":8,"d":"8 Kč"},{"v":8,"d":"8 Kč"},{"$f":"Bydleni[Předpokládané\nnáklady]-Bydleni[Skutečné\nnáklady]","v":{"v":0,"d":"0 Kč"}},null,"Jiné příjmy",{"v":300,"d":"300 Kč"}]
[null,"Kabelová televize",{"v":34,"d":"34 Kč"},{"v":39,"d":"39 Kč"},{"$f":"Bydleni[Předpokládané\nnáklady]-Bydleni[Skutečné\nnáklady]","v":{"v":-5,"d":"-5 Kč"}},null,"Celkové měsíční příjmy",{"$f":"SUM(H9:H11)","v":{"v":5500,"d":"5,500 Kč"}}]
[null,"Poplatky za odpady",{"v":10,"d":"10 Kč"},{"v":10,"d":"10 Kč"},{"$f":"Bydleni[Předpokládané\nnáklady]-Bydleni[Skutečné\nnáklady]","v":{"v":0,"d":"0 Kč"}}]
[null,"Údržba a opravy",{"v":23,"d":"23 Kč"},{"v":0,"d":"0 Kč"},{"$f":"Bydleni[Předpokládané\nnáklady]-Bydleni[Skutečné\nnáklady]","v":{"v":23,"d":"23 Kč"}},null,"Zůstatek","Částka"]
[null,"Zásoby",{"v":0,"d":"0 Kč"},{"v":0,"d":"0 Kč"},{"$f":"Bydleni[Předpokládané\nnáklady]-Bydleni[Skutečné\nnáklady]","v":{"v":0,"d":"0 Kč"}},null,"Předpokládaný zůstatek",{"$f":"SUM(H6-'Měsíční rodinný rozpočet'!$C$3:$C$3)","v":{"v":4297,"d":"Kč 4,297"}}]
[null,"Jiné",{"v":0,"d":"0 Kč"},{"v":0,"d":"0 Kč"},{"$f":"Bydleni[Předpokládané\nnáklady]-Bydleni[Skutečné\nnáklady]","v":{"v":0,"d":"0 Kč"}},null,"Skutečný zůstatek",{"$f":"SUM(H12-D3)","v":{"v":4183,"d":"Kč 4,183"}}]
[null,"Celkem",{"$f":"SUBTOTAL(109,Bydleni[Předpokládané\nnáklady])","v":{"v":1203,"d":"1,203 Kč"}},{"$f":"SUBTOTAL(109,Bydleni[Skutečné\nnáklady])","v":{"v":1317,"d":"1,317 Kč"}},{"$f":"SUBTOTAL(109,Bydleni[Rozdíl])","v":{"v":-114,"d":"-114 Kč"}},null,"Rozdíl",{"$f":"SUM(H16-H15)","v":{"v":-114,"d":"Kč 114"}}]
[]
[null,"Doprava","Předpokládané\nnáklady","Skutečné\nnáklady","Rozdíl",null,"Půjčky","Předpokládané\nnáklady","Skutečné\nnáklady","Rozdíl"]
[null,"Splátka automobilu 1",null,null,{"$f":"Doprava[Předpokládané\nnáklady]-Doprava[Skutečné\nnáklady]","v":{"v":0,"d":"0 Kč"}},null,"Osobní",null,null,{"$f":"Pujcky[Předpokládané\nnáklady]-Pujcky[Skutečné\nnáklady]","v":{"v":0,"d":"0 Kč"}}]
[null,"Splátka automobilu 2",null,null,{"$f":"Doprava[Předpokládané\nnáklady]-Doprava[Skutečné\nnáklady]","v":{"v":0,"d":"0 Kč"}},null,"Studentské",null,null,{"$f":"Pujcky[Předpokládané\nnáklady]-Pujcky[Skutečné\nnáklady]","v":{"v":0,"d":"0 Kč"}}]
[null,"Autobusy/taxi",null,null,{"$f":"Doprava[Předpokládané\nnáklady]-Doprava[Skutečné\nnáklady]","v":{"v":0,"d":"0 Kč"}},null,"Kreditní karta",null,null,{"$f":"Pujcky[Předpokládané\nnáklady]-Pujcky[Skutečné\nnáklady]","v":{"v":0,"d":"0 Kč"}}]
[null,"Pojištění",null,null,{"$f":"Doprava[Předpokládané\nnáklady]-Doprava[Skutečné\nnáklady]","v":{"v":0,"d":"0 Kč"}},null,"Kreditní karta",null,null,{"$f":"Pujcky[Předpokládané\nnáklady]-Pujcky[Skutečné\nnáklady]","v":{"v":0,"d":"0 Kč"}}]
[null,"Poplatky",null,null,{"$f":"Doprava[Předpokládané\nnáklady]-Doprava[Skutečné\nnáklady]","v":{"v":0,"d":"0 Kč"}},null,"Kreditní karta",null,null,{"$f":"Pujcky[Předpokládané\nnáklady]-Pujcky[Skutečné\nnáklady]","v":{"v":0,"d":"0 Kč"}}]
[null,"Benzín",null,null,{"$f":"Doprava[Předpokládané\nnáklady]-Doprava[Skutečné\nnáklady]","v":{"v":0,"d":"0 Kč"}},null,"Jiné",null,null,{"$f":"Pujcky[Předpokládané\nnáklady]-Pujcky[Skutečné\nnáklady]","v":{"v":0,"d":"0 Kč"}}]
[null,"Údržba",null,null,{"$f":"Doprava[Předpokládané\nnáklady]-Doprava[Skutečné\nnáklady]","v":{"v":0,"d":"0 Kč"}},null,"Celkem",{"$f":"SUBTOTAL(109,Pujcky[Předpokládané\nnáklady])","v":{"v":0,"d":"0 Kč"}},{"$f":"SUBTOTAL(109,Pujcky[Skutečné\nnáklady])","v":{"v":0,"d":"0 Kč"}},{"$f":"SUBTOTAL(109,Pujcky[Rozdíl])","v":{"v":0,"d":"0 Kč"}}]
[null,"Jiné",null,null,{"$f":"Doprava[Předpokládané\nnáklady]-Doprava[Skutečné\nnáklady]","v":{"v":0,"d":"0 Kč"}}]
[null,"Celkem",{"$f":"SUBTOTAL(109,Doprava[Předpokládané\nnáklady])","v":{"v":0,"d":"0 Kč"}},{"$f":"SUBTOTAL(109,Doprava[Skutečné\nnáklady])","v":{"v":0,"d":"0 Kč"}},{"$f":"SUBTOTAL(109,Doprava[Rozdíl])","v":{"v":0,"d":"0 Kč"}},null,"Zábava","Předpokládané\nnáklady","Skutečné\nnáklady","Rozdíl"]
[{"$nulls":6},"Video/DVD",null,null,{"$f":"Zabava[Předpokládané\nnáklady]-Zabava[Skutečné\nnáklady]","v":{"v":0,"d":"0 Kč"}}]
[null,"Pojištění","Předpokládané\nnáklady","Skutečné\nnáklady","Rozdíl",null,"CD",null,null,{"$f":"Zabava[Předpokládané\nnáklady]-Zabava[Skutečné\nnáklady]","v":{"v":0,"d":"0 Kč"}}]
[null,"Domácnost",null,null,{"$f":"Pojisteni[Předpokládané\nnáklady]-Pojisteni[Skutečné\nnáklady]","v":{"v":0,"d":"0 Kč"}},null,"Filmy",null,null,{"$f":"Zabava[Předpokládané\nnáklady]-Zabava[Skutečné\nnáklady]","v":{"v":0,"d":"0 Kč"}}]
[null,"Zdravotní",null,null,{"$f":"Pojisteni[Předpokládané\nnáklady]-Pojisteni[Skutečné\nnáklady]","v":{"v":0,"d":"0 Kč"}},null,"Koncerty",null,null,{"$f":"Zabava[Předpokládané\nnáklady]-Zabava[Skutečné\nnáklady]","v":{"v":0,"d":"0 Kč"}}]
[null,"Životní",null,null,{"$f":"Pojisteni[Předpokládané\nnáklady]-Pojisteni[Skutečné\nnáklady]","v":{"v":0,"d":"0 Kč"}},null,"Sport",null,null,{"$f":"Zabava[Předpokládané\nnáklady]-Zabava[Skutečné\nnáklady]","v":{"v":0,"d":"0 Kč"}}]
[null,"Jiné",null,null,{"$f":"Pojisteni[Předpokládané\nnáklady]-Pojisteni[Skutečné\nnáklady]","v":{"v":0,"d":"0 Kč"}},null,"Divadlo",null,null,{"$f":"Zabava[Předpokládané\nnáklady]-Zabava[Skutečné\nnáklady]","v":{"v":0,"d":"0 Kč"}}]
[null,"Celkem",{"$f":"SUBTOTAL(109,Pojisteni[Předpokládané\nnáklady])","v":{"v":0,"d":"0 Kč"}},{"$f":"SUBTOTAL(109,Pojisteni[Skutečné\nnáklady])","v":{"v":0,"d":"0 Kč"}},{"$f":"SUBTOTAL(109,Pojisteni[Rozdíl])","v":{"v":0,"d":"0 Kč"}},null,"Jiné",null,null,{"$f":"Zabava[Předpokládané\nnáklady]-Zabava[Skutečné\nnáklady]","v":{"v":0,"d":"0 Kč"}}]
[{"$nulls":6},"Celkem",{"$f":"SUBTOTAL(109,Zabava[Předpokládané\nnáklady])","v":{"v":0,"d":"0 Kč"}},{"$f":"SUBTOTAL(109,Zabava[Skutečné\nnáklady])","v":{"v":0,"d":"0 Kč"}},{"$f":"SUBTOTAL(109,Zabava[Rozdíl])","v":{"v":0,"d":"0 Kč"}}]
[null,"Jídlo","Předpokládané\nnáklady","Skutečné\nnáklady","Rozdíl"]
[null,"Nákupy potravin",null,null,{"$f":"Jidlo[Předpokládané\nnáklady]-Jidlo[Skutečné\nnáklady]","v":{"v":0,"d":"0 Kč"}},null,"Daně","Předpokládané \nnáklady","Skutečné \nnáklady","Rozdíl"]
[null,"Večeře v restauraci",null,null,{"$f":"Jidlo[Předpokládané\nnáklady]-Jidlo[Skutečné\nnáklady]","v":{"v":0,"d":"0 Kč"}},null,"Daně z příjmů",null,null,{"$f":"Dane[Předpokládané \nnáklady]-Dane[Skutečné \nnáklady]","v":{"v":0,"d":"0 Kč"}}]
[null,"Jiné",null,null,{"$f":"Jidlo[Předpokládané\nnáklady]-Jidlo[Skutečné\nnáklady]","v":{"v":0,"d":"0 Kč"}},null,"Daně z nemovitostí",null,null,{"$f":"Dane[Předpokládané \nnáklady]-Dane[Skutečné \nnáklady]","v":{"v":0,"d":"0 Kč"}}]
[null,"Celkem",{"$f":"SUBTOTAL(109,Jidlo[Předpokládané\nnáklady])","v":{"v":0,"d":"0 Kč"}},{"$f":"SUBTOTAL(109,Jidlo[Skutečné\nnáklady])","v":{"v":0,"d":"0 Kč"}},{"$f":"SUBTOTAL(109,Jidlo[Rozdíl])","v":{"v":0,"d":"0 Kč"}},null,"Silniční daň",null,null,{"$f":"Dane[Předpokládané \nnáklady]-Dane[Skutečné \nnáklady]","v":{"v":0,"d":"0 Kč"}}]
[{"$nulls":6},"Jiné",null,null,{"$f":"Dane[Předpokládané \nnáklady]-Dane[Skutečné \nnáklady]","v":{"v":0,"d":"0 Kč"}}]
[null,"Děti","Předpokládané\nnáklady","Skutečné\nnáklady","Rozdíl",null,"Celkem",{"$f":"SUBTOTAL(109,Dane[Předpokládané \nnáklady])","v":{"v":0,"d":"0 Kč"}},{"$f":"SUBTOTAL(109,Dane[Skutečné \nnáklady])","v":{"v":0,"d":"0 Kč"}},{"$f":"SUBTOTAL(109,Dane[Rozdíl])","v":{"v":0,"d":"0 Kč"}}]
[null,"Zdravotní péče",null,null,{"$f":"Deti[Předpokládané\nnáklady]-Deti[Skutečné\nnáklady]","v":{"v":0,"d":"0 Kč"}}]
[null,"Oblečení",null,null,{"$f":"Deti[Předpokládané\nnáklady]-Deti[Skutečné\nnáklady]","v":{"v":0,"d":"0 Kč"}},null,"Osobní péče","Předpokládané\nnáklady","Skutečné\nnáklady","Rozdíl"]
[null,"Školné",null,null,{"$f":"Deti[Předpokládané\nnáklady]-Deti[Skutečné\nnáklady]","v":{"v":0,"d":"0 Kč"}},null,"Zdravotní péče",null,null,{"$f":"OsobniPece[Předpokládané\nnáklady]-OsobniPece[Skutečné\nnáklady]","v":{"v":0,"d":"0 Kč"}}]
[null,"Školní pomůcky",null,null,{"$f":"Deti[Předpokládané\nnáklady]-Deti[Skutečné\nnáklady]","v":{"v":0,"d":"0 Kč"}},null,"Vlasy a nehty",null,null,{"$f":"OsobniPece[Předpokládané\nnáklady]-OsobniPece[Skutečné\nnáklady]","v":{"v":0,"d":"0 Kč"}}]
[null,"Členské příspěvky a poplatky",null,null,{"$f":"Deti[Předpokládané\nnáklady]-Deti[Skutečné\nnáklady]","v":{"v":0,"d":"0 Kč"}},null,"Oblečení",null,null,{"$f":"OsobniPece[Předpokládané\nnáklady]-OsobniPece[Skutečné\nnáklady]","v":{"v":0,"d":"0 Kč"}}]
[null,"Platba za obědy",null,null,{"$f":"Deti[Předpokládané\nnáklady]-Deti[Skutečné\nnáklady]","v":{"v":0,"d":"0 Kč"}},null,"Čistírna",null,null,{"$f":"OsobniPece[Předpokládané\nnáklady]-OsobniPece[Skutečné\nnáklady]","v":{"v":0,"d":"0 Kč"}}]
[null,"Péče o děti",null,null,{"$f":"Deti[Předpokládané\nnáklady]-Deti[Skutečné\nnáklady]","v":{"v":0,"d":"0 Kč"}},null,"Fitness",null,null,{"$f":"OsobniPece[Předpokládané\nnáklady]-OsobniPece[Skutečné\nnáklady]","v":{"v":0,"d":"0 Kč"}}]
[null,"Hračky a hry",null,null,{"$f":"Deti[Předpokládané\nnáklady]-Deti[Skutečné\nnáklady]","v":{"v":0,"d":"0 Kč"}},null,"Organizační poplatky",null,null,{"$f":"OsobniPece[Předpokládané\nnáklady]-OsobniPece[Skutečné\nnáklady]","v":{"v":0,"d":"0 Kč"}}]
[null,"Jiné",null,null,{"$f":"Deti[Předpokládané\nnáklady]-Deti[Skutečné\nnáklady]","v":{"v":0,"d":"0 Kč"}},null,"Jiné",null,null,{"$f":"OsobniPece[Předpokládané\nnáklady]-OsobniPece[Skutečné\nnáklady]","v":{"v":0,"d":"0 Kč"}}]
[null,"Celkem",{"$f":"SUBTOTAL(109,Deti[Předpokládané\nnáklady])","v":{"v":0,"d":"0 Kč"}},{"$f":"SUBTOTAL(109,Deti[Skutečné\nnáklady])","v":{"v":0,"d":"0 Kč"}},{"$f":"SUBTOTAL(109,Deti[Rozdíl])","v":{"v":0,"d":"0 Kč"}},null,"Celkem",{"$f":"SUBTOTAL(109,OsobniPece[Předpokládané\nnáklady])","v":{"v":0,"d":"0 Kč"}},{"$f":"SUBTOTAL(109,OsobniPece[Skutečné\nnáklady])","v":{"v":0,"d":"0 Kč"}},{"$f":"SUBTOTAL(109,OsobniPece[Rozdíl])","v":{"v":0,"d":"0 Kč"}}]
[]
[null,"Právní","Předpokládané\nnáklady","Skutečné\nnáklady","Rozdíl",null,"Domácí zvířata","Předpokládané\nnáklady","Skutečné\nnáklady","Rozdíl"]
[null,"Advokát",null,null,{"$f":"Pravni[Předpokládané\nnáklady]-Pravni[Skutečné\nnáklady]","v":{"v":0,"d":"0 Kč"}},null,"Jídlo",null,null,{"$f":"DomaciZvirata[Předpokládané\nnáklady]-DomaciZvirata[Skutečné\nnáklady]","v":{"v":0,"d":"0 Kč"}}]
[null,"Výživné",null,null,{"$f":"Pravni[Předpokládané\nnáklady]-Pravni[Skutečné\nnáklady]","v":{"v":0,"d":"0 Kč"}},null,"Zdravotní péče",null,null,{"$f":"DomaciZvirata[Předpokládané\nnáklady]-DomaciZvirata[Skutečné\nnáklady]","v":{"v":0,"d":"0 Kč"}}]
[null,"Platby",null,null,{"$f":"Pravni[Předpokládané\nnáklady]-Pravni[Skutečné\nnáklady]","v":{"v":0,"d":"0 Kč"}},null,"Péče o vzhled",null,null,{"$f":"DomaciZvirata[Předpokládané\nnáklady]-DomaciZvirata[Skutečné\nnáklady]","v":{"v":0,"d":"0 Kč"}}]
[null,"Jiné",null,null,{"$f":"Pravni[Předpokládané\nnáklady]-Pravni[Skutečné\nnáklady]","v":{"v":0,"d":"0 Kč"}},null,"Hračky",null,null,{"$f":"DomaciZvirata[Předpokládané\nnáklady]-DomaciZvirata[Skutečné\nnáklady]","v":{"v":0,"d":"0 Kč"}}]
[null,"Celkem",{"$f":"SUBTOTAL(109,Pravni[Předpokládané\nnáklady])","v":{"v":0,"d":"0 Kč"}},{"$f":"SUBTOTAL(109,Pravni[Skutečné\nnáklady])","v":{"v":0,"d":"0 Kč"}},{"$f":"SUBTOTAL(109,Pravni[Rozdíl])","v":{"v":0,"d":"0 Kč"}},null,"Jiné",null,null,{"$f":"DomaciZvirata[Předpokládané\nnáklady]-DomaciZvirata[Skutečné\nnáklady]","v":{"v":0,"d":"0 Kč"}}]
[{"$nulls":6},"Celkem",{"$f":"SUBTOTAL(109,DomaciZvirata[Předpokládané\nnáklady])","v":{"v":0,"d":"0 Kč"}},{"$f":"SUBTOTAL(109,DomaciZvirata[Skutečné\nnáklady])","v":{"v":0,"d":"0 Kč"}},{"$f":"SUBTOTAL(109,DomaciZvirata[Rozdíl])","v":{"v":0,"d":"0 Kč"}}]
[null,"Úspory a investice","Předpokládané\nnáklady","Skutečné\nnáklady","Rozdíl"]
[null,"Penzijní pojištění",null,null,{"$f":"Sporeni[Předpokládané\nnáklady]-Sporeni[Skutečné\nnáklady]","v":{"v":0,"d":"0 Kč"}},null,"Dary a příspěvky","Předpokládané\nnáklady","Skutečné\nnáklady","Rozdíl"]
[null,"Investiční účet",null,null,{"$f":"Sporeni[Předpokládané\nnáklady]-Sporeni[Skutečné\nnáklady]","v":{"v":0,"d":"0 Kč"}},null,"Charita 1",null,null,{"$f":"Darky[Předpokládané\nnáklady]-Darky[Skutečné\nnáklady]","v":{"v":0,"d":"0 Kč"}}]
[null,"Vysoká škola",null,null,{"$f":"Sporeni[Předpokládané\nnáklady]-Sporeni[Skutečné\nnáklady]","v":{"v":0,"d":"0 Kč"}},null,"Charita 2",null,null,{"$f":"Darky[Předpokládané\nnáklady]-Darky[Skutečné\nnáklady]","v":{"v":0,"d":"0 Kč"}}]
[null,"Jiné",null,null,{"$f":"Sporeni[Předpokládané\nnáklady]-Sporeni[Skutečné\nnáklady]","v":{"v":0,"d":"0 Kč"}},null,"Charita 3",null,null,{"$f":"Darky[Předpokládané\nnáklady]-Darky[Skutečné\nnáklady]","v":{"v":0,"d":"0 Kč"}}]
[null,"Celkem",{"$f":"SUBTOTAL(109,Sporeni[Předpokládané\nnáklady])","v":{"v":0,"d":"0 Kč"}},{"$f":"SUBTOTAL(109,Sporeni[Skutečné\nnáklady])","v":{"v":0,"d":"0 Kč"}},{"$f":"SUBTOTAL(109,Sporeni[Rozdíl])","v":{"v":0,"d":"0 Kč"}},null,"Celkem",{"$f":"SUBTOTAL(109,Darky[Předpokládané\nnáklady])","v":{"v":0,"d":"0 Kč"}},{"$f":"SUBTOTAL(109,Darky[Skutečné\nnáklady])","v":{"v":0,"d":"0 Kč"}},{"$f":"SUBTOTAL(109,Darky[Rozdíl])","v":{"v":0,"d":"0 Kč"}}]